[Event "Titled Tuesday Blitz June 20 Early 2023"]
[White "Trifan, Andrei Ioan"]
[Black "FromTexas54"]
[WhiteFideId "12967068"]
[WhiteElo "2208"]
[BlackElo "2423"]
[Result "1-0"]
[Round "5"]
[TimeControl "180+2"]
[Date "2023.06.20"]
[WhiteClock "0:00:23"]
[BlackClock "0:00:03"]
[Board "119"]

1. Nf3 {[%clk 0:02:59]}  g6 {[%clk 0:02:56]} 2. e4 {[%clk 0:02:57]}  Bg7 {[%clk 0:02:55]} 3. d4 {[%clk 0:02:57]}  d6 {[%clk 0:02:56]} 4. c4 {[%clk 0:02:51]}  Nf6 {[%clk 0:02:56]} 5. Nc3 {[%clk 0:02:50]}  O-O {[%clk 0:02:56]} 6. Be2 {[%clk 0:02:48]}  Na6 {[%clk 0:02:55]} 7. Be3 {[%clk 0:02:45]}  e5 {[%clk 0:02:49]} 8. dxe5 {[%clk 0:02:38]}  dxe5 {[%clk 0:02:49]} 9. Qxd8 {[%clk 0:02:37]}  Rxd8 {[%clk 0:02:50]} 10. h3 {[%clk 0:02:36]}  Re8 {[%clk 0:02:43]} 11. O-O {[%clk 0:02:34]}  c6 {[%clk 0:02:43]} 12. Rfd1 {[%clk 0:02:31]}  Bf8 {[%clk 0:02:37]} 13. a3 {[%clk 0:02:27]}  Nc5 {[%clk 0:02:31]} 14. Nd2 {[%clk 0:02:19]}  Ne6 {[%clk 0:02:16]} 15. b4 {[%clk 0:02:14]}  Nd4 {[%clk 0:02:16]} 16. f3 {[%clk 0:02:06]}  Nc2 {[%clk 0:02:15]} 17. Kf2 {[%clk 0:02:04]}  Nxa1 {[%clk 0:02:07]} 18. Rxa1 {[%clk 0:02:05]}  a5 {[%clk 0:02:07]} 19. b5 {[%clk 0:02:02]}  Be6 {[%clk 0:02:02]} 20. b6 {[%clk 0:01:56]}  Nd7 {[%clk 0:01:40]} 21. Na4 {[%clk 0:01:53]}  f5 {[%clk 0:01:35]} 22. Ke1 {[%clk 0:01:43]}  Kf7 {[%clk 0:01:27]} 23. exf5 {[%clk 0:01:39]}  gxf5 {[%clk 0:01:27]} 24. c5 {[%clk 0:01:31]}  Kf6 {[%clk 0:00:35]} 25. Rc1 {[%clk 0:01:23]}  Red8 {[%clk 0:00:18]} 26. g4 {[%clk 0:01:17]}  f4 {[%clk 0:00:17]} 27. Bf2 {[%clk 0:01:13]}  Bd5 {[%clk 0:00:16]} 28. Bh4+ {[%clk 0:01:07]}  Ke6 {[%clk 0:00:15]} 29. Bxd8 {[%clk 0:01:04]}  Rxd8 {[%clk 0:00:16]} 30. Bd3 {[%clk 0:01:00]}  h6 {[%clk 0:00:15]} 31. Bf5+ {[%clk 0:00:58]}  Kf6 {[%clk 0:00:14]} 32. Bxd7 {[%clk 0:00:56]}  Rxd7 {[%clk 0:00:13]} 33. Nc3 {[%clk 0:00:56]}  Ke6 {[%clk 0:00:08]} 34. Nce4 {[%clk 0:00:53]}  Rh7 {[%clk 0:00:07]} 35. Nc4 {[%clk 0:00:46]}  a4 {[%clk 0:00:07]} 36. Ncd2 {[%clk 0:00:40]}  Be7 {[%clk 0:00:05]} 37. Ke2 {[%clk 0:00:39]}  h5 {[%clk 0:00:05]} 38. g5 {[%clk 0:00:38]}  h4 {[%clk 0:00:04]} 39. Rb1 {[%clk 0:00:34]}  Kf5 {[%clk 0:00:04]} 40. Rb4 {[%clk 0:00:32]}  Bxg5 {[%clk 0:00:03]} 41. Rxa4 {[%clk 0:00:32]}  Bd8 {[%clk 0:00:03]} 42. Ra8 {[%clk 0:00:31]}  Be7 {[%clk 0:00:01]} 43. Rb8 {[%clk 0:00:27]}  Rg7 {[%clk 0:00:01]} 44. Rxb7 {[%clk 0:00:27]}  Rg2+ {[%clk 0:00:01]} 45. Kf1 {[%clk 0:00:22]}  Rxd2 {[%clk 0:00:01]} 46. Nxd2 {[%clk 0:00:19]}  Bxc5 {[%clk 0:00:02]} 47. Rb8 {[%clk 0:00:18]}  Be3 {[%clk 0:00:02]} 48. Ke2 {[%clk 0:00:18]}  e4 {[%clk 0:00:01]} 49. fxe4+ {[%clk 0:00:18]}  Bxe4 {[%clk 0:00:01]} 50. Nxe4 {[%clk 0:00:19]}  Kxe4 {[%clk 0:00:02]} 51. b7 {[%clk 0:00:19]}  f3+ {[%clk 0:00:02]} 52. Kf1 {[%clk 0:00:20]}  Bf4 {[%clk 0:00:02]} 53. Re8+ {[%clk 0:00:21]}  Kd3 {[%clk 0:00:03]} 54. b8=Q {[%clk 0:00:21]}  Bxb8 {[%clk 0:00:03]} 55. Rxb8 {[%clk 0:00:22]}  c5 {[%clk 0:00:03]} 56. Kf2 {[%clk 0:00:22]}  c4 {[%clk 0:00:04]} 57. Rc8 {[%clk 0:00:22]}  c3 {[%clk 0:00:05]} 58. Kxf3 {[%clk 0:00:22]}  c2 {[%clk 0:00:03]} 59. a4 {[%clk 0:00:23]} 1-0


[Site "https://www.chess.com"]

[Event "Titled Tuesday Blitz June 20 Early 2023"]
[White "Mamedov, Edgar"]
[Black "Ramirez Vido, Robert Yorisan"]
[WhiteFideId "13739980"]
[BlackFideId "3513823"]
[WhiteElo "2317"]
[BlackElo "2416"]
[Result "1-0"]
[Round "5"]
[TimeControl "180+2"]
[Date "2023.06.20"]
[WhiteClock "0:01:38"]
[BlackClock "0:01:02"]
[Board "121"]

1. d4 {[%clk 0:02:59]}  g6 {[%clk 0:02:59]} 2. Nf3 {[%clk 0:02:58]}  Nf6 {[%clk 0:03:00]} 3. Bf4 {[%clk 0:02:57]}  Bg7 {[%clk 0:03:00]} 4. e3 {[%clk 0:02:57]}  d6 {[%clk 0:02:58]} 5. h3 {[%clk 0:02:57]}  O-O {[%clk 0:02:58]} 6. Be2 {[%clk 0:02:56]}  Nc6 {[%clk 0:02:58]} 7. O-O {[%clk 0:02:56]}  e5 {[%clk 0:02:58]} 8. dxe5 {[%clk 0:02:54]}  Ne4 {[%clk 0:02:57]} 9. Qd5 {[%clk 0:02:30]}  dxe5 {[%clk 0:02:49]} 10. Qxd8 {[%clk 0:02:19]}  Rxd8 {[%clk 0:02:46]} 11. Bh2 {[%clk 0:02:18]}  Nb4 {[%clk 0:02:29]} 12. Na3 {[%clk 0:02:14]}  Nd2 {[%clk 0:02:26]} 13. Rfd1 {[%clk 0:02:08]}  Nxf3+ {[%clk 0:02:09]} 14. Bxf3 {[%clk 0:02:06]}  Re8 {[%clk 0:01:55]} 15. c3 {[%clk 0:01:58]}  Na6 {[%clk 0:01:53]} 16. Nb5 {[%clk 0:01:49]}  Be6 {[%clk 0:01:36]} 17. Bxb7 {[%clk 0:01:44]}  Nc5 {[%clk 0:01:12]} 18. Bxa8 {[%clk 0:01:42]}  Rxa8 {[%clk 0:01:13]} 19. Nxc7 {[%clk 0:01:42]}  Rb8 {[%clk 0:01:11]} 20. b4 {[%clk 0:01:39]}  Ne4 {[%clk 0:01:08]} 21. Nxe6 {[%clk 0:01:38]}  fxe6 {[%clk 0:01:08]} 22. Rd7 {[%clk 0:01:38]}  Nxc3 {[%clk 0:01:02]} 23. Rxg7+ {[%clk 0:01:38]} 1-0


[Site "https://www.chess.com"]

[Event "Titled Tuesday Blitz June 20 Early 2023"]
[White "Krutko, Anatoly"]
[Black "Suarez Uriel, Adrian"]
[WhiteFideId "4185862"]
[BlackFideId "22230874"]
[WhiteElo "2378"]
[BlackElo "2331"]
[Result "1-0"]
[Round "5"]
[TimeControl "180+2"]
[Date "2023.06.20"]
[WhiteClock "0:00:09"]
[BlackClock "0:00:12"]
[Board "122"]

1. Nf3 {[%clk 0:03:00]}  c5 {[%clk 0:02:58]} 2. g3 {[%clk 0:03:01]}  b6 {[%clk 0:02:55]} 3. Bg2 {[%clk 0:03:01]}  Bb7 {[%clk 0:02:56]} 4. O-O {[%clk 0:03:01]}  Nf6 {[%clk 0:02:55]} 5. d3 {[%clk 0:02:57]}  d5 {[%clk 0:02:55]} 6. Nbd2 {[%clk 0:02:57]}  e6 {[%clk 0:02:55]} 7. e4 {[%clk 0:02:53]}  Be7 {[%clk 0:02:56]} 8. e5 {[%clk 0:02:45]}  Nfd7 {[%clk 0:02:55]} 9. Re1 {[%clk 0:02:45]}  Nc6 {[%clk 0:02:56]} 10. Qe2 {[%clk 0:02:44]}  Qc7 {[%clk 0:02:55]} 11. Nf1 {[%clk 0:02:44]}  O-O-O {[%clk 0:02:50]} 12. c3 {[%clk 0:02:41]}  h5 {[%clk 0:02:49]} 13. h4 {[%clk 0:02:40]}  Kb8 {[%clk 0:02:41]} 14. d4 {[%clk 0:02:40]}  cxd4 {[%clk 0:02:35]} 15. cxd4 {[%clk 0:02:39]}  Nb4 {[%clk 0:02:36]} 16. Bd2 {[%clk 0:02:17]}  Ba6 {[%clk 0:02:34]} 17. Bxb4 {[%clk 0:02:15]}  Bxe2 {[%clk 0:02:29]} 18. Bxe7 {[%clk 0:02:15]}  Bxf1 {[%clk 0:02:13]} 19. Bxf1 {[%clk 0:01:30]}  Qb7 {[%clk 0:01:48]} 20. Ng5 {[%clk 0:01:18]}  f6 {[%clk 0:01:22]} 21. Nxe6 {[%clk 0:01:15]}  Nxe5 {[%clk 0:01:12]} 22. Bxd8 {[%clk 0:00:43]}  Nf3+ {[%clk 0:01:09]} 23. Kg2 {[%clk 0:00:43]}  Nxe1+ {[%clk 0:01:09]} 24. Rxe1 {[%clk 0:00:44]}  Qd7 {[%clk 0:00:57]} 25. Bc7+ {[%clk 0:00:44]}  Kb7 {[%clk 0:00:57]} 26. Bd3 {[%clk 0:00:25]}  Re8 {[%clk 0:00:46]} 27. Bf5 {[%clk 0:00:22]}  Rxe6 {[%clk 0:00:46]} 28. Bxe6 {[%clk 0:00:22]}  Qxc7 {[%clk 0:00:46]} 29. Bxd5+ {[%clk 0:00:22]}  Ka6 {[%clk 0:00:44]} 30. Bf3 {[%clk 0:00:23]}  g6 {[%clk 0:00:44]} 31. d5 {[%clk 0:00:23]}  Qc2 {[%clk 0:00:38]} 32. Re2 {[%clk 0:00:22]}  Qd3 {[%clk 0:00:38]} 33. Re6 {[%clk 0:00:20]}  Qd4 {[%clk 0:00:38]} 34. d6 {[%clk 0:00:18]}  g5 {[%clk 0:00:34]} 35. hxg5 {[%clk 0:00:16]}  fxg5 {[%clk 0:00:35]} 36. a4 {[%clk 0:00:10]}  g4 {[%clk 0:00:34]} 37. Be4 {[%clk 0:00:11]}  Ka5 {[%clk 0:00:31]} 38. Bc6 {[%clk 0:00:07]}  a6 {[%clk 0:00:25]} 39. d7 {[%clk 0:00:08]}  Kb4 {[%clk 0:00:12]} 40. Re8 {[%clk 0:00:08]}  Qc5 {[%clk 0:00:13]} 41. d8=Q {[%clk 0:00:08]}  Qxc6+ {[%clk 0:00:13]} 42. Kh2 {[%clk 0:00:09]}  Qf3 {[%clk 0:00:13]} 43. Qd2+ {[%clk 0:00:09]}  Kb3 {[%clk 0:00:12]} 44. Re3+ {[%clk 0:00:09]}  Ka2 {[%clk 0:00:12]} 45. Rxf3 {[%clk 0:00:09]} 1-0


[Site "https://www.chess.com"]

[Event "Titled Tuesday Blitz June 20 Early 2023"]
[White "Kotepalli, Sai Nirupama"]
[Black "Siniauski, Artsiom"]
[WhiteFideId "5039444"]
[BlackFideId "13512269"]
[WhiteElo "2391"]
[BlackElo "2065"]
[Result "1-0"]
[Round "5"]
[TimeControl "180+2"]
[Date "2023.06.20"]
[WhiteClock "0:01:26"]
[BlackClock "0:00:34"]
[Board "126"]

1. e4 {[%clk 0:03:00]}  e6 {[%clk 0:02:58]} 2. d3 {[%clk 0:02:51]}  d5 {[%clk 0:02:59]} 3. Nd2 {[%clk 0:02:50]}  c5 {[%clk 0:02:59]} 4. Ngf3 {[%clk 0:02:49]}  Nc6 {[%clk 0:03:00]} 5. g3 {[%clk 0:02:48]}  Nf6 {[%clk 0:03:00]} 6. Bg2 {[%clk 0:02:46]}  g6 {[%clk 0:03:01]} 7. O-O {[%clk 0:02:43]}  Bg7 {[%clk 0:03:01]} 8. c3 {[%clk 0:02:42]}  O-O {[%clk 0:03:01]} 9. Qe2 {[%clk 0:02:41]}  a5 {[%clk 0:03:00]} 10. a3 {[%clk 0:02:38]}  b5 {[%clk 0:02:55]} 11. Re1 {[%clk 0:02:32]}  Ba6 {[%clk 0:02:54]} 12. Nf1 {[%clk 0:02:29]}  b4 {[%clk 0:02:53]} 13. e5 {[%clk 0:02:27]}  Nd7 {[%clk 0:02:52]} 14. Bf4 {[%clk 0:02:26]}  bxc3 {[%clk 0:02:49]} 15. bxc3 {[%clk 0:02:25]}  Rb8 {[%clk 0:02:50]} 16. h4 {[%clk 0:02:22]}  Rb3 {[%clk 0:02:48]} 17. Qc2 {[%clk 0:02:21]}  Qb6 {[%clk 0:02:48]} 18. Ne3 {[%clk 0:02:02]}  d4 {[%clk 0:02:29]} 19. cxd4 {[%clk 0:01:51]}  Bxd3 {[%clk 0:02:09]} 20. dxc5 {[%clk 0:01:46]}  Nxc5 {[%clk 0:02:09]} 21. Qc1 {[%clk 0:01:39]}  Ba6 {[%clk 0:01:40]} 22. Nc4 {[%clk 0:01:33]}  Bxc4 {[%clk 0:01:31]} 23. Qxc4 {[%clk 0:01:34]}  Nd3 {[%clk 0:01:32]} 24. Re3 {[%clk 0:01:28]}  Nb2 {[%clk 0:00:34]} 25. Qxb3 {[%clk 0:01:26]} 1-0


[Site "https://www.chess.com"]

[Event "Titled Tuesday Blitz June 20 Early 2023"]
[White "Toropov, Pavel"]
[Black "Ritvin, Stanislav"]
[WhiteFideId "24129178"]
[BlackFideId "2011751"]
[WhiteElo "2182"]
[BlackElo "2385"]
[Result "1-0"]
[Round "5"]
[TimeControl "180+2"]
[Date "2023.06.20"]
[WhiteClock "0:00:22"]
[BlackClock "0:00:53"]
[Board "127"]

1. e4 {[%clk 0:02:19]}  e5 {[%clk 0:02:54]} 2. Nf3 {[%clk 0:02:18]}  Nc6 {[%clk 0:02:53]} 3. d4 {[%clk 0:02:18]}  exd4 {[%clk 0:02:53]} 4. Nxd4 {[%clk 0:02:19]}  Nf6 {[%clk 0:02:53]} 5. Nc3 {[%clk 0:02:20]}  Bb4 {[%clk 0:02:52]} 6. Nxc6 {[%clk 0:02:20]}  bxc6 {[%clk 0:02:51]} 7. Bd3 {[%clk 0:02:21]}  d5 {[%clk 0:02:51]} 8. exd5 {[%clk 0:02:22]}  cxd5 {[%clk 0:02:51]} 9. O-O {[%clk 0:02:22]}  O-O {[%clk 0:02:44]} 10. Bg5 {[%clk 0:02:22]}  c6 {[%clk 0:02:45]} 11. Qf3 {[%clk 0:02:11]}  Qd6 {[%clk 0:02:35]} 12. Bxf6 {[%clk 0:01:37]}  Qxf6 {[%clk 0:02:36]} 13. Qxf6 {[%clk 0:01:37]}  gxf6 {[%clk 0:02:36]} 14. a3 {[%clk 0:01:37]}  Ba5 {[%clk 0:02:23]} 15. Ne2 {[%clk 0:01:27]}  Bb6 {[%clk 0:02:19]} 16. Ng3 {[%clk 0:01:26]}  Re8 {[%clk 0:02:06]} 17. Rfe1 {[%clk 0:01:23]}  Bd7 {[%clk 0:02:01]} 18. Kf1 {[%clk 0:01:11]}  Rxe1+ {[%clk 0:02:00]} 19. Rxe1 {[%clk 0:01:07]}  Re8 {[%clk 0:02:01]} 20. Rxe8+ {[%clk 0:01:07]}  Bxe8 {[%clk 0:02:01]} 21. Nf5 {[%clk 0:01:07]}  Bd7 {[%clk 0:01:58]} 22. Ne3 {[%clk 0:01:07]}  h6 {[%clk 0:01:52]} 23. Ke2 {[%clk 0:01:05]}  Kf8 {[%clk 0:01:49]} 24. c4 {[%clk 0:01:00]}  Be6 {[%clk 0:01:43]} 25. cxd5 {[%clk 0:00:54]}  cxd5 {[%clk 0:01:42]} 26. b4 {[%clk 0:00:50]}  Ke7 {[%clk 0:01:41]} 27. Bf5 {[%clk 0:00:42]}  Kd6 {[%clk 0:01:41]} 28. Bd3 {[%clk 0:00:39]}  Bd4 {[%clk 0:01:36]} 29. g3 {[%clk 0:00:37]}  Bb2 {[%clk 0:01:34]} 30. Nc2 {[%clk 0:00:38]}  Bc3 {[%clk 0:01:31]} 31. Ke3 {[%clk 0:00:33]}  Ke5 {[%clk 0:01:28]} 32. f4+ {[%clk 0:00:33]}  Kd6 {[%clk 0:01:28]} 33. Nd4 {[%clk 0:00:34]}  Bb2 {[%clk 0:01:26]} 34. Nb5+ {[%clk 0:00:30]}  Kd7 {[%clk 0:01:21]} 35. Kd2 {[%clk 0:00:26]}  a6 {[%clk 0:01:19]} 36. Kc2 {[%clk 0:00:24]}  Ba1 {[%clk 0:01:05]} 37. Kb1 {[%clk 0:00:24]}  axb5 {[%clk 0:01:03]} 38. Bxb5+ {[%clk 0:00:24]}  Kd6 {[%clk 0:01:02]} 39. Kxa1 {[%clk 0:00:25]}  d4 {[%clk 0:01:02]} 40. Kb2 {[%clk 0:00:24]}  Kd5 {[%clk 0:01:02]} 41. Bd3 {[%clk 0:00:24]}  Bd7 {[%clk 0:01:01]} 42. Kc2 {[%clk 0:00:24]}  Ba4+ {[%clk 0:01:00]} 43. Kd2 {[%clk 0:00:25]}  Kd6 {[%clk 0:01:00]} 44. Bc2 {[%clk 0:00:25]}  Bb5 {[%clk 0:00:59]} 45. a4 {[%clk 0:00:25]}  Bc4 {[%clk 0:00:59]} 46. Bd3 {[%clk 0:00:25]}  Bb3 {[%clk 0:01:00]} 47. a5 {[%clk 0:00:26]}  Kc6 {[%clk 0:00:58]} 48. Ke2 {[%clk 0:00:25]}  Ba4 {[%clk 0:00:57]} 49. Kf3 {[%clk 0:00:25]}  Kd5 {[%clk 0:00:57]} 50. a6 {[%clk 0:00:23]}  Kc6 {[%clk 0:00:53]} 51. Ke4 {[%clk 0:00:22]} 1-0


[Site "https://www.chess.com"]

[Event "Titled Tuesday Blitz June 20 Early 2023"]
[White "Fernandez Siles, Luis"]
[Black "MaryanKyrychenko"]
[WhiteFideId "2209420"]
[WhiteElo "2195"]
[BlackElo "2519"]
[Result "1/2-1/2"]
[Round "5"]
[TimeControl "180+2"]
[Date "2023.06.20"]
[WhiteClock "0:00:03"]
[BlackClock "0:00:08"]
[Board "128"]

1. d4 {[%clk 0:03:00]}  Nf6 {[%clk 0:02:57]} 2. c4 {[%clk 0:02:57]}  e6 {[%clk 0:02:54]} 3. Nf3 {[%clk 0:02:57]}  Bb4+ {[%clk 0:02:48]} 4. Bd2 {[%clk 0:02:55]}  c5 {[%clk 0:02:47]} 5. g3 {[%clk 0:02:55]}  O-O {[%clk 0:02:43]} 6. Bg2 {[%clk 0:02:55]}  Nc6 {[%clk 0:02:44]} 7. O-O {[%clk 0:02:50]}  Bxd2 {[%clk 0:02:43]} 8. Qxd2 {[%clk 0:02:50]}  cxd4 {[%clk 0:02:44]} 9. Nxd4 {[%clk 0:02:50]}  d5 {[%clk 0:02:45]} 10. Rd1 {[%clk 0:02:32]}  Qb6 {[%clk 0:02:42]} 11. Na3 {[%clk 0:02:13]}  Rd8 {[%clk 0:02:41]} 12. cxd5 {[%clk 0:02:08]}  exd5 {[%clk 0:02:38]} 13. Rac1 {[%clk 0:01:57]}  a6 {[%clk 0:02:29]} 14. e3 {[%clk 0:01:45]}  Bg4 {[%clk 0:02:27]} 15. f3 {[%clk 0:01:42]}  Bh5 {[%clk 0:02:27]} 16. Nxc6 {[%clk 0:01:33]}  bxc6 {[%clk 0:02:24]} 17. Qd4 {[%clk 0:01:32]}  Qb7 {[%clk 0:02:06]} 18. b3 {[%clk 0:01:16]}  a5 {[%clk 0:02:05]} 19. Rc5 {[%clk 0:01:14]}  Nd7 {[%clk 0:01:51]} 20. Rc3 {[%clk 0:01:02]}  Qb4 {[%clk 0:01:51]} 21. Nc2 {[%clk 0:01:01]}  Qb5 {[%clk 0:01:37]} 22. Qh4 {[%clk 0:00:40]}  Bg6 {[%clk 0:01:33]} 23. Nd4 {[%clk 0:00:39]}  Qb4 {[%clk 0:01:24]} 24. Rxc6 {[%clk 0:00:36]}  Ne5 {[%clk 0:01:16]} 25. Rcc1 {[%clk 0:00:27]}  Nd3 {[%clk 0:01:09]} 26. Rc7 {[%clk 0:00:18]}  Rdc8 {[%clk 0:00:44]} 27. Rxc8+ {[%clk 0:00:16]}  Rxc8 {[%clk 0:00:43]} 28. Ne2 {[%clk 0:00:16]}  Qxh4 {[%clk 0:00:42]} 29. gxh4 {[%clk 0:00:16]}  Rc2 {[%clk 0:00:40]} 30. Nd4 {[%clk 0:00:16]}  Rxa2 {[%clk 0:00:38]} 31. h5 {[%clk 0:00:17]}  Bxh5 {[%clk 0:00:16]} 32. Rxd3 {[%clk 0:00:16]}  f6 {[%clk 0:00:16]} 33. Nf5 {[%clk 0:00:16]}  Kf7 {[%clk 0:00:16]} 34. Nd6+ {[%clk 0:00:15]}  Ke6 {[%clk 0:00:16]} 35. Nb5 {[%clk 0:00:15]}  a4 {[%clk 0:00:15]} 36. Nd4+ {[%clk 0:00:15]}  Ke5 {[%clk 0:00:14]} 37. bxa4 {[%clk 0:00:16]}  Rxa4 {[%clk 0:00:14]} 38. Kf2 {[%clk 0:00:16]}  g5 {[%clk 0:00:14]} 39. Kg3 {[%clk 0:00:16]}  Ra2 {[%clk 0:00:14]} 40. f4+ {[%clk 0:00:15]}  Kd6 {[%clk 0:00:13]} 41. Nf5+ {[%clk 0:00:14]}  Ke6 {[%clk 0:00:11]} 42. Rxd5 {[%clk 0:00:13]}  Rxg2+ {[%clk 0:00:10]} 43. Kxg2 {[%clk 0:00:13]}  Kxd5 {[%clk 0:00:11]} 44. fxg5 {[%clk 0:00:12]}  fxg5 {[%clk 0:00:11]} 45. e4+ {[%clk 0:00:12]}  Ke5 {[%clk 0:00:10]} 46. Ng3 {[%clk 0:00:12]}  Bg6 {[%clk 0:00:10]} 47. Kf2 {[%clk 0:00:12]}  Bxe4 {[%clk 0:00:10]} 48. Ne2 {[%clk 0:00:10]}  h5 {[%clk 0:00:10]} 49. h4 {[%clk 0:00:07]}  g4 {[%clk 0:00:09]} 50. Ng3 {[%clk 0:00:06]}  Bg6 {[%clk 0:00:10]} 51. Ne2 {[%clk 0:00:05]}  Be8 {[%clk 0:00:10]} 52. Kg3 {[%clk 0:00:06]}  Ke4 {[%clk 0:00:10]} 53. Nf4 {[%clk 0:00:06]}  Ke3 {[%clk 0:00:11]} 54. Ne6 {[%clk 0:00:06]}  Bf7 {[%clk 0:00:09]} 55. Ng5 {[%clk 0:00:06]}  Bd5 {[%clk 0:00:08]} 56. Nh7 {[%clk 0:00:05]}  Ke4 {[%clk 0:00:08]} 57. Nf6+ {[%clk 0:00:05]}  Ke5 {[%clk 0:00:09]} 58. Nxh5 {[%clk 0:00:06]}  Bf7 {[%clk 0:00:09]} 59. Nf4 {[%clk 0:00:05]}  Kf5 {[%clk 0:00:09]} 60. Ng2 {[%clk 0:00:05]}  Kg6 {[%clk 0:00:07]} 61. Kxg4 {[%clk 0:00:03]}  Kh6 {[%clk 0:00:07]} 62. Nf4 {[%clk 0:00:03]}  Be8 {[%clk 0:00:08]} 63. h5 {[%clk 0:00:03]}  Bxh5+ {[%clk 0:00:08]} 1/2-1/2


[Site "https://www.chess.com"]

[Event "Titled Tuesday Blitz June 20 Early 2023"]
[White "Alahakoon, Isuru"]
[Black "Liu, Casper"]
[WhiteFideId "9900993"]
[BlackFideId "1454153"]
[WhiteElo "1819"]
[BlackElo "2221"]
[Result "1-0"]
[Round "5"]
[TimeControl "180+2"]
[Date "2023.06.20"]
[WhiteClock "0:00:45"]
[BlackClock "0:01:01"]
[Board "130"]

1. Nf3 {[%clk 0:02:15]}  d6 {[%clk 0:02:59]} 2. d4 {[%clk 0:02:14]}  g6 {[%clk 0:02:58]} 3. Nc3 {[%clk 0:02:15]}  Bg7 {[%clk 0:02:59]} 4. e4 {[%clk 0:02:14]}  Nf6 {[%clk 0:02:59]} 5. h3 {[%clk 0:02:11]}  O-O {[%clk 0:02:59]} 6. Be3 {[%clk 0:02:09]}  a6 {[%clk 0:03:00]} 7. a4 {[%clk 0:02:06]}  b6 {[%clk 0:03:01]} 8. Bd3 {[%clk 0:02:04]}  Bb7 {[%clk 0:03:01]} 9. O-O {[%clk 0:02:05]}  c5 {[%clk 0:03:01]} 10. Qe2 {[%clk 0:02:02]}  c4 {[%clk 0:03:00]} 11. Bxc4 {[%clk 0:01:59]}  Nxe4 {[%clk 0:03:01]} 12. Nxe4 {[%clk 0:01:57]}  Bxe4 {[%clk 0:03:01]} 13. Ng5 {[%clk 0:01:53]}  Bb7 {[%clk 0:03:00]} 14. Qg4 {[%clk 0:01:52]}  e6 {[%clk 0:02:58]} 15. Bxe6 {[%clk 0:01:42]}  fxe6 {[%clk 0:02:41]} 16. Qxe6+ {[%clk 0:01:40]}  Kh8 {[%clk 0:02:41]} 17. Nf7+ {[%clk 0:01:41]}  Rxf7 {[%clk 0:02:41]} 18. Qxf7 {[%clk 0:01:41]}  Nd7 {[%clk 0:02:41]} 19. Rae1 {[%clk 0:01:38]}  Qe8 {[%clk 0:02:28]} 20. Qf4 {[%clk 0:01:33]}  Nf6 {[%clk 0:02:24]} 21. Qxd6 {[%clk 0:01:30]}  Qf7 {[%clk 0:02:03]} 22. Qxb6 {[%clk 0:01:27]}  Ne4 {[%clk 0:01:59]} 23. f3 {[%clk 0:01:11]}  Ng3 {[%clk 0:01:58]} 24. Rf2 {[%clk 0:01:11]}  Nf5 {[%clk 0:01:57]} 25. c3 {[%clk 0:01:05]}  h5 {[%clk 0:01:47]} 26. Bg5 {[%clk 0:00:55]}  Bd5 {[%clk 0:01:35]} 27. Rfe2 {[%clk 0:00:53]}  Ng3 {[%clk 0:01:24]} 28. Re7 {[%clk 0:00:49]}  Qf8 {[%clk 0:01:15]} 29. Qxg6 {[%clk 0:00:47]}  Nf5 {[%clk 0:01:01]} 30. Re8 {[%clk 0:00:45]} 1-0


[Site "https://www.chess.com"]

[Event "Titled Tuesday Blitz June 20 Early 2023"]
[White "Turzo, Attila"]
[Black "Cesar Maestre, Bernardo"]
[WhiteFideId "704954"]
[BlackFideId "24542547"]
[WhiteElo "2515"]
[BlackElo "2271"]
[Result "1-0"]
[Round "5"]
[TimeControl "180+2"]
[Date "2023.06.20"]
[WhiteClock "0:02:05"]
[BlackClock "0:01:58"]
[Board "131"]

1. d4 {[%clk 0:03:00]}  Nf6 {[%clk 0:02:59]} 2. c4 {[%clk 0:03:00]}  e6 {[%clk 0:02:59]} 3. g3 {[%clk 0:03:00]}  d5 {[%clk 0:02:57]} 4. Bg2 {[%clk 0:03:01]}  Be7 {[%clk 0:02:52]} 5. Nf3 {[%clk 0:03:01]}  O-O {[%clk 0:02:52]} 6. O-O {[%clk 0:03:00]}  c6 {[%clk 0:02:51]} 7. Qc2 {[%clk 0:02:56]}  a5 {[%clk 0:02:49]} 8. Nbd2 {[%clk 0:02:55]}  a4 {[%clk 0:02:49]} 9. e4 {[%clk 0:02:55]}  Qa5 {[%clk 0:02:44]} 10. Rd1 {[%clk 0:02:49]}  Rd8 {[%clk 0:02:41]} 11. e5 {[%clk 0:02:23]}  Nfd7 {[%clk 0:02:40]} 12. Bf1 {[%clk 0:02:24]}  a3 {[%clk 0:02:30]} 13. b3 {[%clk 0:02:22]}  b6 {[%clk 0:02:25]} 14. Bd3 {[%clk 0:02:15]}  Nf8 {[%clk 0:02:22]} 15. Nf1 {[%clk 0:02:12]}  Bb7 {[%clk 0:02:18]} 16. h4 {[%clk 0:02:11]}  c5 {[%clk 0:02:17]} 17. Ng5 {[%clk 0:02:08]}  h6 {[%clk 0:01:58]} 18. Bh7+ {[%clk 0:02:05]} 1-0


[Site "https://www.chess.com"]

[Event "Titled Tuesday Blitz June 20 Early 2023"]
[White "Camilla_Lee"]
[Black "Jiganchine, Roman"]
[BlackFideId "2603667"]
[WhiteElo "2515"]
[BlackElo "2325"]
[Result "1-0"]
[Round "5"]
[TimeControl "180+2"]
[Date "2023.06.20"]
[WhiteClock "0:02:01"]
[BlackClock "0:02:17"]
[Board "133"]

1. e4 {[%clk 0:02:56]}  e5 {[%clk 0:02:56]} 2. Nf3 {[%clk 0:02:56]}  Nc6 {[%clk 0:02:56]} 3. Nc3 {[%clk 0:02:54]}  Nf6 {[%clk 0:02:56]} 4. d4 {[%clk 0:02:53]}  exd4 {[%clk 0:02:55]} 5. Nd5 {[%clk 0:02:52]}  Nb4 {[%clk 0:02:53]} 6. Bc4 {[%clk 0:02:51]}  Be7 {[%clk 0:02:51]} 7. O-O {[%clk 0:02:36]}  Nbxd5 {[%clk 0:02:42]} 8. exd5 {[%clk 0:02:34]}  O-O {[%clk 0:02:30]} 9. Nxd4 {[%clk 0:02:16]}  d6 {[%clk 0:02:28]} 10. h3 {[%clk 0:02:12]}  Bf5 {[%clk 0:02:28]} 11. Nxf5 {[%clk 0:02:11]}  Re8 {[%clk 0:02:24]} 12. Qf3 {[%clk 0:02:06]}  Bf8 {[%clk 0:02:17]} 13. Bg5 {[%clk 0:02:01]} 1-0


[Site "https://www.chess.com"]